bitfinex-derivatives/quotes_ETHF0:USTF0_20250209
["timestamp","ask_amount","ask_price","bid_price","bid_amount"]
[1739142667343,4.264,2614.6,2613.8,0.00573691]
[1739142667344,3.2078,2615.7,2614.0,7.68937772]
[1739142667549,3.2078,2614.4,2613.9,4.91241224]
[1739142667850,4.29803442,2614.0,2613.0,3.2078]
[1739142668039,3.2078,2614.1,2613.0,3.2078]
[1739142668349,4.04145912,2613.9,2613.0,3.2078]
[1739142668546,4.04145912,2614.0,2613.0,3.2078]
[1739142668850,3.2078,2613.4,2613.2,0.00573691]
[1739142669646,2.362,2613.5,2613.2,0.00573691]
[1739142669854,0.00573691,2613.8,2613.2,0.00573691]
[1739142669855,3.21353691,2613.8,2613.2,0.00573691]
[1739142670249,4.39867086,2613.7,2613.2,0.00573691]
[1739142670556,5.16375086,2613.7,2613.2,0.00573691]
[1739142670745,3.97297,2613.4,2613.2,0.00573691]
[1739142671052,3.2078,2613.4,2613.2,0.00573691]
[1739142671553,5.3343,2613.4,2613.2,0.00573691]
[1739142672048,10.46658,2613.4,2613.2,0.00573691]
[1739142672250,9.7014,2613.4,2613.2,0.00573691]
[1739142672651,4.83595715,2613.3,2612.4,2.0475]
[1739142672945,3.2078,2613.1,2612.4,2.0475]
[1739142673354,9.7014,2613.4,2612.4,2.0475]
[1739142673758,3.99751584,2613.3,2612.6,0.00573691]
[1739142673960,3.99751584,2613.3,2612.6,3.21353691]
[1739142674256,4.2548,2613.4,2612.6,3.21353691]
[1739142675157,2.1265,2613.4,2612.6,3.21353691]
[1739142675461,2.1265,2613.4,2612.6,0.00573691]
[1739142676162,3.2078,2613.0,2612.6,0.00573691]
[1739142676665,3.2078,2612.7,2612.6,0.00573691]
[1739142677760,3.97317,2612.7,2612.6,0.00573691]
[1739142677965,5.2768,2612.7,2612.6,0.00573691]
[1739142678264,6.04217,2612.7,2612.6,0.00573691]
[1739142678855,5.2768,2612.7,2612.6,0.00573691]
[1739142679055,4.4472,2613.0,2612.6,0.00573691]
[1739142679257,5.5698,2613.3,2612.6,0.00573691]
[1739142679258,3.2078,2613.3,2612.6,0.00573691]
[1739142679966,3.12719,2613.4,2612.6,0.00573691]
[1739142680153,2.362,2613.4,2612.6,0.00573691]
[1739142680358,0.00573691,2613.8,2613.1,3.2078]
[1739142680664,0.00573691,2613.8,2613.4,3.2078]
[1739142681058,0.00573691,2613.8,2613.7,3.2078]
[1739142681253,2.1227,2614.6,2613.7,3.2078]
[1739142681561,2.362,2614.9,2614.3,3.2078]
[1739142682466,2.36773691,2614.9,2614.3,3.21353691]
[1739142682663,2.36773691,2614.9,2614.3,0.00573691]
[1739142683563,3.2078,2614.8,2614.3,0.00573691]
[1739142683767,4.21926269,2614.8,2614.3,0.00573691]
[1739142683959,2.36773691,2614.9,2614.3,0.00573691]
[1739142685456,3.2078,2614.7,2614.3,0.00573691]
[1739142685757,3.97259,2614.7,2614.3,0.00573691]
[1739142685960,3.2078,2614.7,2614.3,0.00573691]
[1739142686668,0.76483,2614.6,2614.3,0.00573691]
[1739142686862,3.2078,2614.7,2614.3,0.00573691]
[1739142687063,2.94245,2614.5,2614.3,0.00573691]
[1739142687364,0.76504,2613.9,2613.3,2.1792]
[1739142687664,0.76504,2613.9,2612.9,5.3044]
[1739142687665,3.2078,2613.7,2612.9,3.2078]
[1739142687865,0.76515,2613.5,2612.6,3.2078]
[1739142688174,3.2078,2613.4,2612.5,3.2078]
[1739142688364,0.00573691,2613.3,2613.2,3.2078]
[1739142688966,0.00573691,2613.3,2612.9,3.2078]
[1739142689267,0.00573691,2613.3,2613.2,3.2078]
[1739142689863,2.36,2614.1,2613.2,3.2078]
[1739142690062,2.36,2614.1,2613.1,6.68487772]
[1739142690063,2.36,2614.6,2613.5,3.2078]
[1739142690459,2.36,2614.6,2614.2,3.2078]
[1739142690755,2.36,2614.6,2613.5,0.76512]
[1739142690756,2.36,2614.6,2613.9,3.2078]
[1739142690961,0.00573691,2614.7,2614.5,3.2078]
[1739142691172,2.0652,2615.3,2614.5,3.2078]
[1739142691663,2.0652,2615.3,2614.1,0.00573691]
[1739142691861,3.2078,2614.7,2614.1,0.00573691]
[1739142692269,3.97268,2614.4,2614.1,0.00573691]
[1739142692667,3.2078,2614.4,2614.1,0.00573691]
[1739142692866,2.0381,2614.3,2613.1,3.50533655]
[1739142693175,3.97277,2614.1,2613.1,3.2078]
[1739142693668,4.06392348,2614.0,2613.1,3.2078]
[1739142693864,3.2078,2613.8,2612.9,4.329]
[1739142694071,3.2078,2613.8,2613.3,0.00573691]
[1739142694072,3.21353691,2613.8,2613.3,0.00573691]
[1739142694265,4.06392348,2613.7,2613.3,0.00573691]
[1739142694464,3.97859691,2613.8,2613.3,0.00573691]
[1739142695067,3.21353691,2613.8,2613.3,0.00573691]
[1739142695669,0.00573691,2613.8,2613.3,0.00573691]
[1739142696564,3.21353691,2613.8,2613.3,0.00573691]
[1739142697480,0.00573691,2613.8,2613.3,0.00573691]
[1739142698074,0.00573691,2613.8,2613.4,3.2078]
[1739142698276,0.00573691,2613.8,2613.7,3.2078]
[1739142699368,2.359,2614.4,2613.7,3.2078]
[1739142699871,4.3239,2614.6,2613.7,3.2078]
[1739142700061,4.4768,2614.8,2614.0,3.2078]
[1739142700264,3.2078,2615.3,2613.3,0.00573691]
[1739142700265,3.2078,2615.3,2614.7,3.2078]
[1739142700460,3.2078,2616.0,2614.8,3.2078]
[1739142700666,2.1694,2615.9,2615.1,3.2078]
[1739142701071,2.1694,2615.9,2614.8,5.4079]
[1739142701267,3.2078,2615.7,2614.8,5.4079]
[1739142701468,3.2078,2615.7,2614.8,3.2078]
[1739142701773,3.2078,2615.4,2614.8,3.2078]
[1739142702667,3.2078,2615.4,2614.7,0.00573691]
[1739142702866,3.2078,2615.1,2614.7,0.00573691]
[1739142706870,3.2078,2615.8,2614.8,3.2078]
[1739142707065,3.2078,2615.8,2615.1,3.2078]
[1739142708679,2.0733,2616.0,2615.4,3.2078]
[1739142708978,3.2078,2616.1,2615.4,3.2078]
[1739142710581,2.1163,2616.5,2615.4,3.2078]
[1739142710774,2.1163,2616.5,2615.7,3.2078]
[1739142711079,2.1163,2616.5,2615.4,3.2078]
[1739142711875,2.88057,2616.5,2615.4,3.2078]
[1739142712077,0.76439,2616.1,2615.4,3.2078]
[1739142712581,0.76449,2615.7,2614.8,4.2436]
[1739142712786,2.0898,2615.6,2614.8,4.2436]
[1739142713679,2.85432,2615.6,2614.8,4.2436]
[1739142713982,2.0898,2615.6,2614.8,4.2436]
[1739142714376,2.0898,2615.6,2614.7,3.21353691]
[1739142714377,0.76458,2615.4,2614.7,0.00573691]
[1739142714877,0.7646,2615.4,2614.7,0.00573691]
[1739142715469,3.97237,2615.5,2614.7,0.00573691]
[1739142715673,3.2078,2615.5,2614.7,3.21353691]
[1739142715873,3.97236,2615.5,2614.7,3.21353691]
[1739142716273,3.2078,2615.5,2614.7,3.21353691]
[1739142716576,2.0898,2615.6,2615.0,3.2078]
[1739142716977,0.76458,2615.5,2614.7,3.21353691]
[1739142717280,0.76461,2615.4,2614.7,0.00573691]
[1739142717581,7.54228517,2615.5,2614.7,3.21353691]
[1739142717777,3.2078,2615.5,2614.7,3.21353691]
[1739142718280,2.0898,2615.6,2614.7,3.21353691]
[1739142718477,2.85433,2615.6,2614.7,3.21353691]
[1739142718776,2.0898,2615.6,2614.7,3.21353691]
[1739142718977,3.2078,2615.5,2614.7,3.21353691]
[1739142719173,0.76459,2615.4,2614.7,3.21353691]
[1739142719377,3.2078,2615.0,2614.7,0.00573691]
[1739142719582,3.2078,2615.0,2612.5,7.82514364]
[1739142719583,8.86077772,2614.9,2613.9,3.2078]
[1739142719773,3.2078,2614.5,2613.4,3.2078]
[1739142719986,0.76498,2614.1,2613.4,3.2078]
[1739142720172,0.76497,2614.1,2613.4,3.2078]
[1739142720372,3.2078,2614.2,2613.4,3.2078]
[1739142720789,3.2078,2613.9,2613.5,0.00573691]
[1739142721286,0.00573691,2614.1,2613.5,0.00573691]
[1739142721482,0.00573691,2614.1,2614.0,3.2078]
[1739142721885,0.00573691,2614.1,2613.7,3.2078]
[1739142722385,0.00573691,2614.1,2614.0,3.2078]
[1739142722688,2.071,2615.2,2614.0,9.2078]
[1739142722879,4.48157772,2615.7,2614.8,3.2078]
[1739142722880,7.4239,2615.7,2614.8,3.2078]
[1739142723184,2.071,2615.9,2615.2,3.2078]
[1739142723482,3.2078,2616.0,2615.2,3.2078]
[1739142723788,0.76437,2616.2,2615.3,0.00573691]
[1739142723990,5.5628,2616.3,2615.3,0.00573691]
[1739142724285,9.61169759,2616.3,2615.3,0.00573691]
[1739142724581,5.5628,2616.3,2615.3,0.00573691]
[1739142724784,3.2078,2616.0,2615.3,0.00573691]
[1739142725982,3.11939,2616.1,2615.3,0.00573691]
[1739142725983,3.2078,2615.7,2615.3,0.00573691]
[1739142726186,2.0722,2615.6,2615.3,0.00573691]
[1739142726683,3.2078,2615.4,2615.3,0.00573691]
[1739142726887,5.5618,2615.4,2615.3,0.00573691]
[1739142727091,2.354,2615.4,2615.3,0.00573691]
[1739142727287,2.0722,2615.6,2615.3,0.00573691]
[1739142727480,2.354,2615.5,2615.3,0.00573691]
[1739142728780,2.0722,2615.6,2615.3,0.00573691]
[1739142729392,5.28,2615.6,2615.3,0.00573691]
[1739142729690,4.04588918,2615.5,2615.3,0.00573691]
[1739142729891,5.28,2615.6,2615.3,0.00573691]
[1739142730090,4.81043918,2615.5,2615.3,0.00573691]
[1739142730284,0.76458,2615.4,2615.3,0.00573691]
[1739142730679,10.03024433,2615.4,2614.2,3.2078]
[1739142730889,3.2078,2615.2,2614.1,5.63851476]
[1739142731080,2.354,2615.1,2614.1,5.335]
[1739142731282,8.52624433,2615.1,2614.1,5.335]
[1739142731888,0.00573691,2614.9,2614.3,0.00573691]
[1739142732084,0.00573691,2614.9,2614.8,3.2078]
[1739142732289,0.00573691,2614.9,2614.5,3.2078]
[1739142732487,2.142,2616.0,2614.8,3.2078]
[1739142732488,3.2078,2615.9,2614.8,3.2078]
[1739142732691,2.142,2616.0,2615.4,3.2078]
[1739142733082,2.142,2616.0,2615.1,3.2078]
[1739142733291,2.142,2616.0,2615.4,3.2078]
[1739142734988,2.142,2616.0,2615.2,0.29744139]
[1739142735187,2.142,2616.0,2615.1,3.2078]
[1739142735488,2.142,2616.0,2615.4,3.2078]
[1739142736191,2.142,2616.0,2615.1,3.2078]
[1739142736495,3.2078,2615.9,2615.1,3.2078]
[1739142737097,3.2078,2615.9,2615.4,3.2078]
[1739142738088,3.2078,2615.9,2614.9,4.68764039]
[1739142738089,3.2078,2615.9,2615.1,3.2078]
[1739142738288,0.76447,2615.8,2615.1,3.2078]
[1739142738496,3.2078,2615.5,2614.9,2.2185]
[1739142738794,4.20392985,2615.8,2615.1,3.2078]
[1739142738994,2.142,2616.0,2615.1,3.2078]
[1739142739698,6.11421,2616.0,2615.1,3.2078]
[1739142739893,5.3498,2616.0,2615.1,3.2078]
[1739142740099,5.3498,2616.0,2615.4,3.2078]
[1739142740100,2.142,2616.0,2615.4,3.2078]
[1739142740289,2.352,2616.1,2615.4,3.2078]
[1739142740493,7.2318,2616.3,2615.7,3.2078]
[1739142740905,4.3914,2616.6,2615.7,3.21353691]
[1739142741304,4.39009876,2616.5,2615.7,3.21353691]
[1739142742102,4.3914,2617.1,2616.1,3.2078]
[1739142742599,4.3914,2617.1,2616.4,3.2078]
[1739142743201,4.3914,2617.1,2616.2,1.9229]
[1739142743897,6.3298,2617.4,2616.5,3.2078]
[1739142744101,3.2078,2617.3,2616.5,3.2078]
[1739142744301,3.2078,2617.3,2616.6,1.8847]
[1739142747307,3.9788,2617.4,2616.6,1.8847]
[1739142747607,3.2078,2617.6,2616.8,3.2078]
[1739142747805,3.2078,2617.6,2616.6,1.8847]
[1739142747806,3.2078,2617.9,2617.1,3.2078]
[1739142748304,3.2078,2617.9,2617.2,0.00573691]
[1739142749104,3.97167,2617.9,2617.2,0.00573691]
[1739142749406,3.2078,2617.9,2617.2,0.00573691]
[1739142751005,1.9403,2618.1,2617.2,0.00573691]
[1739142751006,0.76403,2617.3,2617.2,0.00573691]
[1739142751208,5.5578,2617.4,2616.2,1.9229]
[1739142751412,3.2078,2617.0,2616.2,1.9229]
[1739142751805,3.2078,2617.0,2616.4,3.2078]
[1739142752304,3.21353691,2617.0,2616.4,3.21353691]
[1739142752503,3.21353691,2617.0,2616.4,0.00573691]
[1739142754210,0.00573691,2617.0,2616.8,3.2078]
[1739142754410,3.2078,2617.7,2616.9,3.2078]
[1739142754615,3.2078,2618.0,2617.4,3.2078]
[1739142755312,3.2078,2618.0,2617.1,3.2078]
[1739142756807,5.8435,2618.2,2617.6,3.2078]
[1739142757007,3.8003,2618.2,2617.6,3.2078]
[1739142757206,3.2078,2618.3,2617.6,3.2078]
[1739142757508,7.15870772,2618.7,2617.6,3.2078]
[1739142757509,7.4693,2618.7,2617.6,3.2078]
[1739142757708,7.4693,2618.7,2617.7,5.187]
[1739142758006,7.4693,2618.7,2618.0,3.2078]
[1739142758208,7.4693,2618.7,2617.9,0.00573691]
[1739142759305,5.1213,2618.7,2617.9,0.00573691]
[1739142759811,2.0687,2618.9,2618.3,3.2078]
[1739142760216,3.2078,2619.4,2618.3,3.2078]
[1739142760407,3.97132,2619.1,2617.9,3.21353691]
[1739142760717,3.2078,2618.8,2617.9,3.21353691]
[1739142760916,3.2078,2618.5,2617.9,3.21353691]
[1739142761414,3.2078,2618.5,2617.9,0.00573691]
[1739142761612,4.88885573,2618.4,2617.9,0.00573691]
[1739142761812,4.12513573,2618.4,2617.9,0.00573691]
[1739142762006,4.12513573,2618.4,2617.9,3.21353691]
[1739142762212,1.9042,2618.7,2617.9,3.21353691]
[1739142763012,1.9042,2618.7,2618.1,3.2078]
[1739142764710,5.112,2618.7,2618.1,3.2078]
[1739142764909,8.0065575,2618.6,2617.9,0.00573691]
[1739142765317,3.9394,2618.6,2617.9,3.21353691]
[1739142766013,7.94594335,2618.6,2617.9,0.00573691]
[1739142766321,3.2078,2618.4,2617.9,0.00573691]
[1739142766615,3.97151,2618.4,2617.9,0.00573691]
[1739142766808,7.94594335,2618.6,2617.1,1.9646]
[1739142766809,7.21434335,2618.0,2617.1,1.9646]
[1739142767014,7.21434335,2618.0,2617.0,3.2078]
[1739142767015,3.2078,2617.4,2616.5,5.107]
[1739142767215,3.2078,2617.4,2616.5,3.2078]
[1739142767520,1.9898,2617.3,2616.5,3.2078]
[1739142768019,0.00573691,2617.2,2616.6,0.00573691]
[1739142768415,1.87123691,2617.2,2616.6,0.00573691]
[1739142768913,0.00573691,2617.2,2616.9,3.2078]
[1739142769115,10.01490318,2618.7,2617.2,0.76405]
[1739142769317,0.06567049,2618.6,2617.4,3.2078]
[1739142769512,7.75439195,2618.6,2617.4,3.2078]
[1739142769721,7.33050431,2618.6,2617.4,3.2078]
[1739142769916,1.9445,2618.5,2617.4,3.2078]
[1739142770220,1.9445,2618.5,2617.7,3.21353691]
[1739142771015,1.9445,2618.5,2617.7,0.00573691]
[1739142771310,0.76378,2618.2,2617.7,0.00573691]
[1739142771516,3.2078,2618.0,2617.7,0.00573691]
[1739142773318,3.7598,2618.1,2617.7,0.00573691]
[1739142773514,3.2078,2618.0,2617.7,0.00573691]
[1739142773716,7.34233583,2618.0,2617.7,0.00573691]
[1739142773916,0.76392,2617.7,2616.9,3.2078]
[1739142774116,2.70106,2617.6,2616.9,3.2078]
[1739142774320,3.2078,2617.4,2616.9,3.2078]
[1739142775220,3.21353691,2617.4,2616.9,3.21353691]
[1739142775525,3.2078,2617.1,2616.9,0.00573691]
[1739142776023,4.15163317,2617.0,2616.9,0.00573691]
[1739142777022,0.00573691,2617.4,2616.9,3.21353691]
[1739142777517,0.00573691,2617.4,2616.9,0.00573691]
[1739142778320,0.00573691,2617.4,2616.9,3.21353691]
[1739142779721,0.00573691,2617.4,2616.9,0.00573691]
[1739142780424,3.21353691,2617.4,2616.9,0.00573691]
[1739142780822,2.0282,2617.3,2616.9,0.00573691]
[1739142781017,2.344,2617.2,2616.9,0.00573691]
[1739142781225,3.2078,2617.0,2615.9,3.2078]
[1739142781529,3.2078,2616.6,2615.9,3.2078]
[1739142781719,4.3348,2616.5,2615.7,5.0803]
[1739142781920,3.2078,2616.3,2615.6,3.2078]
[1739142782131,8.63329472,2616.5,2615.6,3.2078]
[1739142782321,4.3348,2616.5,2615.7,0.00573691]
[1739142782529,4.29849472,2616.4,2615.7,0.00573691]
[1739142783431,2.344,2616.8,2615.9,3.2078]
[1739142783630,2.344,2616.8,2616.2,3.2078]
[1739142783833,2.344,2616.8,2615.9,3.2078]
[1739142784022,2.344,2616.8,2616.2,3.2078]
[1739142784223,4.10998421,2616.7,2615.7,0.00573691]
[1739142784524,3.2078,2616.6,2615.7,0.00573691]
[1739142784726,3.97204,2616.6,2615.7,0.00573691]
[1739142785022,4.20125104,2616.5,2615.7,3.21353691]
[1739142785423,4.3999,2616.7,2615.7,3.21353691]
[1739142785626,4.3999,2616.7,2615.9,3.2078]
[1739142786227,3.2078,2617.3,2616.5,3.2078]
[1739142786429,5.8045,2617.8,2617.1,3.2078]
[1739142786635,5.8045,2617.8,2617.3,3.2078]
[1739142786932,2.343,2618.2,2617.3,3.2078]
[1739142787522,2.343,2618.3,2617.3,3.2078]
[1739142788432,2.343,2618.3,2617.3,9.2078]
[1739142789127,2.343,2618.3,2617.3,3.2078]
[1739142789332,2.343,2618.3,2617.3,9.2078]
[1739142789529,2.343,2618.3,2617.7,3.2078]
[1739142790135,5.8045,2618.4,2617.7,3.2078]
[1739142790632,0.00573691,2618.3,2617.7,3.2078]
[1739142791332,3.2078,2618.2,2617.7,3.2078]
[1739142791532,7.22421713,2618.2,2617.7,3.2078]
[1739142791724,3.2078,2618.2,2617.7,3.2078]
[1739142792331,0.00573691,2618.3,2617.7,3.2078]
[1739142792927,0.00573691,2618.3,2618.1,3.2078]
[1739142796140,0.00573691,2618.3,2617.5,5.223]
[1739142796332,0.00573691,2618.3,2617.8,3.2078]
[1739142796734,0.00573691,2618.3,2618.1,3.2078]
[1739142798049,0.00573691,2618.3,2617.8,3.2078]
[1739142798645,3.2078,2619.2,2618.2,3.2078]
[1739142798840,3.2078,2619.2,2618.5,3.2078]
[1739142799141,4.24894753,2619.1,2618.5,3.2078]
[1739142799456,3.2078,2619.2,2618.3,1.915]
[1739142799846,3.2078,2618.9,2618.5,0.00573691]
[1739142800046,7.36575046,2618.8,2617.7,3.2078]
[1739142800246,3.2078,2618.5,2617.7,3.2078]
[1739142800546,3.2078,2618.2,2617.0,3.2078]
[1739142800746,0.76383,2618.0,2617.4,3.2078]
[1739142801058,4.03127553,2617.9,2617.4,3.2078]
[1739142801345,3.2078,2618.8,2617.8,3.2078]
[1739142801549,0.06566163,2618.7,2617.8,3.2078]
[1739142801747,4.03127553,2618.6,2617.8,3.2078]
[1739142801943,6.37127553,2618.7,2617.8,3.2078]
[1739142802144,2.34,2618.7,2617.8,3.2078]
[1739142802345,3.2078,2618.5,2617.6,1.8401]
[1739142802758,5.0865,2618.5,2617.6,1.8401]
[1739142803250,1.8359,2618.4,2617.6,1.8401]
[1739142803446,3.2078,2618.2,2617.6,1.8401]
[1739142803645,4.00888577,2618.1,2617.5,3.2078]
[1739142803847,2.339,2618.0,2617.5,3.2078]
[1739142804147,2.339,2618.0,2617.4,0.00573691]
[1739142804148,3.2078,2617.8,2617.4,0.00573691]
[1739142804351,2.339,2618.0,2617.4,3.21353691]
[1739142804753,0.00369297,2617.7,2617.4,3.21353691]
[1739142805250,0.00369297,2617.7,2617.4,0.00573691]
[1739142805653,3.2078,2617.5,2617.4,0.00573691]
[1739142805847,3.2078,2617.5,2616.6,3.2078]
[1739142805848,0.76403,2617.3,2616.6,3.2078]
[1739142806148,1.8528,2617.4,2616.6,3.2078]
[1739142806352,1.7961,2617.6,2616.9,3.2078]
[1739142807150,0.00573691,2617.5,2617.0,0.00573691]
[1739142807350,3.2078,2617.1,2617.0,0.00573691]
[1739142807547,0.00573691,2617.5,2616.6,3.2078]
[1739142807548,5.5468,2617.2,2616.6,3.2078]
[1739142807754,5.5468,2617.2,2616.5,1.7838]
[1739142807955,5.5468,2617.2,2616.3,3.2078]
[1739142807956,0.76412,2617.0,2616.3,3.2078]
[1739142808257,0.76418,2616.8,2616.3,3.2078]
[1739142808457,1.8853,2616.9,2616.3,3.2078]
[1739142808663,3.2078,2616.7,2615.9,1.7865]
[1739142808954,7.23278864,2616.7,2616.3,0.00573691]
[1739142809157,3.2078,2616.7,2616.3,0.00573691]
[1739142810850,3.97202,2616.7,2616.3,0.00573691]
[1739142811051,3.2078,2616.7,2616.3,0.00573691]
[1739142811959,2.339,2616.6,2616.3,0.00573691]
[1739142813350,3.2078,2616.4,2616.3,0.00573691]
[1739142813556,3.97209,2616.4,2616.3,0.00573691]
[1739142814655,3.97209,2616.4,2615.7,3.2078]
[1739142814656,0.76435,2616.3,2615.7,3.2078]
[1739142814854,3.2078,2616.4,2615.7,3.2078]
[1739142815058,4.1357,2616.8,2615.7,3.2078]
[1739142815354,4.1357,2616.8,2616.0,3.2078]
[1739142815548,1.8853,2616.9,2616.3,3.2078]
[1739142815755,2.338,2617.0,2616.4,3.2078]
[1739142816057,2.338,2617.0,2616.1,4.00888577]
[1739142816058,3.97184,2617.3,2616.5,1.8632]
[1739142816254,6.30984,2617.3,2616.5,1.8632]
[1739142816563,5.5458,2617.3,2616.3,0.00573691]
[1739142816862,7.46040048,2617.0,2616.3,3.21353691]
[1739142817054,3.2078,2617.0,2616.3,3.21353691]
[1739142817560,3.2078,2617.0,2616.3,0.00573691]
[1739142818060,5.1334,2617.0,2616.3,0.00573691]
[1739142818862,5.1334,2617.0,2616.3,3.21353691]
[1739142820058,5.1334,2617.0,2616.3,0.00573691]
[1739142820965,1.9256,2617.0,2616.3,3.21353691]
[1739142821158,5.5458,2617.3,2616.6,3.2078]
[1739142821159,3.2078,2617.3,2616.6,3.2078]
[1739142821663,0.00573691,2617.5,2616.9,3.2078]
[1739142822162,0.00573691,2617.5,2617.0,1.7591]
[1739142822965,0.00369297,2617.7,2617.3,3.2078]
[1739142823162,0.00369297,2617.7,2617.6,3.2078]
[1739142824568,0.00369297,2617.7,2617.3,3.2078]
[1739142824769,3.2078,2617.6,2617.0,3.2078]
[1739142824961,6.3777,2617.6,2616.7,1.8843]
[1739142825168,3.1699,2617.6,2616.8,3.2078]
[1739142828466,6.3777,2617.6,2616.7,1.8843]
[1739142828672,7.14164,2617.6,2616.7,1.8843]
[1739142828967,6.3777,2617.6,2616.7,1.8843]
[1739142829669,3.2078,2617.3,2616.7,1.8843]
[1739142829866,3.2078,2616.8,2616.3,0.00573691]
[1739142830067,7.0289,2616.7,2616.3,0.00573691]
[1739142830566,2.335,2616.7,2616.3,0.00573691]
[1739142830868,2.29249,2617.6,2616.3,0.00573691]
[1739142830869,2.335,2617.3,2616.3,0.00573691]
[1739142831167,2.335,2617.3,2616.3,6.30133691]
[1739142831563,2.335,2617.3,2616.6,3.2078]
[1739142833167,2.335,2617.3,2616.3,6.30133691]
[1739142833364,2.335,2617.3,2616.3,3.09353691]
[1739142834169,2.6933856,2617.3,2616.3,6.30133691]
[1739142834575,3.4574256,2617.3,2616.3,3.09353691]
[1739142834869,3.2078,2617.1,2616.3,3.21353691]
[1739142835070,3.97199,2616.8,2616.3,0.00573691]
[1739142835269,5.4155,2616.7,2616.3,0.00573691]
[1739142835473,2.334,2616.6,2616.3,0.00573691]
[1739142835769,3.2078,2616.5,2616.3,0.00573691]
[1739142838769,2.334,2616.6,2616.3,0.00573691]
[1739142839671,3.2078,2616.5,2616.3,0.00573691]
[1739142839877,3.97207,2616.5,2616.3,0.00573691]
[1739142840178,3.97206,2616.5,2616.3,0.00573691]
[1739142840672,3.2078,2616.5,2616.3,0.00573691]
[1739142842376,5.5418,2617.4,2616.3,3.21353691]
[1739142842569,3.2078,2617.1,2616.3,0.00573691]
[1739142842768,7.19850986,2616.8,2616.3,0.00573691]
[1739142842969,6.26721,2616.7,2616.3,0.00573691]
[1739142843172,7.0942,2616.7,2616.3,0.00573691]
[1739142843767,4.7612,2616.7,2616.3,0.00573691]
[1739142844073,3.2078,2616.8,2616.3,0.00573691]
[1739142845164,0.35841811,2617.1,2616.3,3.21353691]
[1739142845376,0.35841811,2617.1,2616.3,0.00573691]
[1739142845683,6.4204,2617.2,2616.3,0.00573691]
[1739142846073,7.18446,2617.2,2616.3,0.00573691]
[1739142846978,3.97195,2616.9,2616.3,0.00573691]
[1739142847179,1.5595,2616.8,2616.3,0.00573691]
[1739142847680,3.2078,2616.9,2616.3,0.00573691]
[1739142847681,0.35842496,2617.0,2616.3,3.21353691]
[1739142847875,3.56622496,2617.0,2616.3,3.21353691]
[1739142848182,3.2126,2617.2,2616.3,3.21353691]
[1739142848582,4.35644289,2617.1,2616.6,3.2078]
[1739142848776,2.332,2617.6,2616.9,3.2078]
[1739142848971,2.332,2617.6,2616.6,3.2078]
[1739142849670,0.76399,2617.5,2616.6,3.2078]
[1739142849977,3.2078,2617.4,2616.5,3.2078]
[1739142850175,0.76404,2617.3,2616.5,3.2078]
[1739142850477,4.88807077,2617.3,2616.3,0.00573691]
[1739142850672,1.634,2617.2,2616.3,0.00573691]
[1739142850879,1.664,2617.1,2616.3,0.30638865]
[1739142851472,1.664,2617.1,2616.3,0.00573691]
[1739142851870,3.1901,2617.1,2616.3,0.00573691]
[1739142853576,1.634,2617.2,2616.6,3.2078]
[1739142854286,2.39807,2617.2,2616.3,0.00573691]
[1739142855280,0.76409,2617.1,2616.5,3.2078]
[1739142855583,8.12943389,2617.1,2616.3,0.00573691]
[1739142855880,1.4753,2617.0,2616.3,0.00573691]
[1739142856078,1.4362,2616.9,2616.3,0.00573691]
[1739142856476,7.50465579,2616.8,2616.3,0.00573691]
[1739142856987,1.12264896,2616.7,2616.3,0.00573691]
[1739142857485,1.4259,2616.6,2616.3,0.00573691]
[1739142857674,5.5858399,2616.6,2616.3,0.00573691]
[1739142857877,5.5858399,2616.6,2615.6,3.2078]
[1739142857878,0.76429,2616.4,2615.6,3.2078]
[1739142858185,1.4753,2616.3,2615.6,3.2078]
[1739142858479,3.97216,2616.2,2615.4,1.4746]
[1739142858684,3.2078,2616.2,2615.4,1.4746]
[1739142858888,4.17408278,2616.1,2615.4,1.4746]
[1739142859183,4.17981969,2616.1,2615.5,0.00573691]
[1739142859385,1.4894,2616.0,2615.5,0.00573691]
[1739142861191,2.9708,2616.0,2615.5,0.00573691]
[1739142861387,0.36418587,2616.1,2615.7,3.2078]
[1739142862084,0.00573691,2616.1,2615.7,3.2078]
[1739142862790,0.00573691,2616.1,2615.5,0.00573691]
[1739142862982,1.41043691,2616.1,2615.5,0.00573691]
[1739142864486,1.4094,2616.0,2615.5,0.00573691]
[1739142868691,3.2078,2615.9,2615.5,0.00573691]
[1739142868889,1.4094,2616.0,2615.5,0.00573691]
[1739142869190,3.2078,2615.9,2615.5,0.00573691]
[1739142870190,1.4094,2616.0,2615.5,0.00573691]
[1739142872090,1.4094,2616.0,2615.8,3.2078]
[1739142872288,1.4094,2616.0,2615.5,3.21353691]
[1739142872593,1.4094,2616.0,2615.5,0.00573691]
[1739142873592,5.38163,2616.0,2615.5,0.00573691]
[1739142873894,4.6172,2616.0,2615.5,0.00573691]
[1739142874092,0.76452,2615.6,2615.1,3.2078]
[1739142874296,1.4656,2615.5,2615.1,3.2078]
[1739142875405,1.446,2615.4,2615.0,0.00573691]
[1739142875694,1.446,2615.4,2614.3,1.5264]
[1739142875695,6.3442972,2615.2,2614.3,1.5264]
[1739142875903,3.2078,2614.9,2614.3,1.5264]
[1739142876105,1.4591,2614.8,2614.3,1.5264]
[1739142876695,1.4591,2614.8,2614.3,1.53213691]
[1739142878107,3.2078,2614.9,2614.3,4.66863411]
[1739142878304,3.2078,2615.2,2614.3,4.66863411]
[1739142878704,4.3621,2615.2,2614.3,4.66863411]
[1739142879606,4.3621,2615.2,2614.5,3.2078]
[1739142879803,3.2078,2615.2,2614.5,3.2078]
[1739142879998,3.2078,2615.2,2614.3,4.66863411]
[1739142880209,3.2078,2615.2,2614.5,3.2078]
[1739142881010,3.2078,2615.2,2614.6,4.6057972]
[1739142881310,1.4591,2615.3,2614.8,3.2078]
[1739142881512,5.24,2615.7,2614.8,3.2078]
[1739142881808,9.9027,2615.7,2614.8,3.2078]